fUST/lending_fUST_20250718
["ID","MTS","AMOUNT","RATE_DAILY","PERIOD"]
[372874264,1752787849800,-460.0,0.0001871,2]
[372874265,1752787849808,-460.0,0.00018711,2]
[372874266,1752787849817,-460.0,0.00018711,2]
[372874267,1752787849825,-367.36623763,0.00018711,2]
[372874268,1752787849834,-460.0,0.00018711,2]
[372874269,1752787849842,-460.0,0.00018711,2]
[372874270,1752787849850,-460.0,0.00018711,2]
[372874271,1752787849856,-508.89,0.00018711,2]
[372874272,1752787849863,-460.0,0.00018711,2]
[372874273,1752787849871,-151.0,0.00018711,2]
[372874274,1752787849880,-460.0,0.00018711,2]
[372874275,1752787849889,-151.272782,0.00018711,2]
[372874276,1752787849898,-151.0,0.00018711,2]
[372874277,1752787849906,-151.0,0.00018711,2]
[372874278,1752787849915,-797.17,0.00018711,2]
[372874279,1752787849925,-500.0,0.00018831,2]
[372874280,1752787849937,-393.25615558,0.000189,2]
[372874281,1752787849947,-460.0,0.00018981,2]
[372874282,1752787849956,-910.41,0.00018981,2]
[372874283,1752787849965,-1267.88,0.00018981,2]
[372874284,1752787849974,-957.69,0.00018981,2]
[372874285,1752787849983,-460.0,0.00018981,2]
[372874286,1752787849992,-460.0,0.00018981,2]
[372874287,1752787850001,-1186.63,0.00018981,2]
[372874288,1752787850010,-460.0,0.00018981,2]
[372874289,1752787850020,-1406.18,0.00018981,2]
[372874290,1752787850030,-460.0,0.00018981,2]
[372874291,1752787850039,-460.0,0.00018981,2]
[372874292,1752787850048,-467.62564909,0.00018981,2]
[372874293,1752787850057,-460.0,0.00018981,2]
[372874294,1752787850068,-460.0,0.00018981,2]
[372874295,1752787850077,-460.0,0.00018981,2]
[372874296,1752787850086,-460.0,0.00018981,2]
[372874297,1752787850096,-460.0,0.00018982,2]
[372874298,1752787850106,-460.0,0.00018982,2]
[372874299,1752787850115,-460.0,0.00018982,2]
[372874300,1752787850124,-460.0,0.00018982,2]
[372874301,1752787850134,-192.63,0.00018982,2]
[372874302,1752787850144,-460.0,0.00018982,2]
[372874303,1752787850153,-460.0,0.00018982,2]
[372874304,1752787850162,-460.0,0.00018982,2]
[372874305,1752787850171,-460.0,0.00018982,2]
[372874306,1752787850182,-527.91,0.00018982,2]
[372874307,1752787850192,-460.0,0.00018982,2]
[372874308,1752787850201,-743.69,0.00018982,2]
[372874309,1752787850209,-488.85,0.00018982,2]
[372874310,1752787850219,-151.0,0.00018983,2]
[372874311,1752787850227,-460.0,0.00018983,2]
[372874312,1752787850236,-460.0,0.00018983,2]
[372874313,1752787850245,-460.0,0.00018983,2]
[372874314,1752787850254,-151.0,0.00018983,2]
[372874315,1752787850263,-460.0,0.00018983,2]
[372874316,1752787850272,-460.0,0.00018983,2]
[372874317,1752787850281,-151.0,0.00018983,2]
[372874318,1752787850290,-2558.1,0.00018983,2]
[372874319,1752787850299,-902.37,0.00018983,2]
[372874320,1752787850307,-460.0,0.00018983,2]
[372874321,1752787850316,-460.0,0.00018983,2]
[372874322,1752787850325,-460.0,0.00018983,2]
[372874323,1752787850334,-858.09,0.00018983,2]
[372874324,1752787850343,-460.0,0.00018984,2]
[372874325,1752787850351,-860.36,0.00018984,2]
[372874326,1752787850360,-842.54,0.00018984,2]
[372874327,1752787850369,-460.0,0.00018984,2]
[372874328,1752787850379,-460.0,0.00018984,2]
[372874329,1752787850387,-460.0,0.00018984,2]
[372874330,1752787850395,-460.0,0.00018985,2]
[372874331,1752787850405,-323.09154179,0.00018985,2]
[372874332,1752787850414,-460.0,0.00018985,2]
[372874333,1752787850423,-460.0,0.00018985,2]
[372874334,1752787850435,-460.0,0.00018985,2]
[372874335,1752787850444,-508.89,0.00018985,2]
[372874336,1752787850453,-460.0,0.00018985,2]
[372874337,1752787850462,-460.0,0.00018985,2]
[372874338,1752787850471,-797.17,0.00018985,2]
[372874339,1752787850480,-2000.0,0.00019016,2]
[372874340,1752787850489,-1000.0,0.00019016,2]
[372874341,1752787850499,-151.0,0.00019116,2]
[372874342,1752787850508,-1500.0,0.00019116,2]
[372874343,1752787850517,-1004.70318548,0.00019116,2]
[372874344,1752787850527,-178.706049,0.00019178,2]
[372874345,1752787850536,-460.0,0.00019255,2]
[372874346,1752787850546,-910.41,0.00019255,2]
[372874347,1752787850555,-1267.88,0.00019255,2]
[372874348,1752787850563,-957.69,0.00019255,2]
[372874349,1752787850572,-460.0,0.00019255,2]
[372874350,1752787850582,-460.0,0.00019255,2]
[372874351,1752787850591,-1186.63,0.00019255,2]
[372874352,1752787850600,-460.0,0.00019255,2]
[372874353,1752787850611,-1406.18,0.00019255,2]
[372874354,1752787850620,-460.0,0.00019255,2]
[372874355,1752787850629,-460.0,0.00019255,2]
[372874356,1752787850638,-460.0,0.00019255,2]
[372874357,1752787850647,-460.0,0.00019255,2]
[372874358,1752787850657,-460.0,0.00019255,2]
[372874359,1752787850667,-460.0,0.00019255,2]
[372874360,1752787850676,-460.0,0.00019256,2]
[372874361,1752787850687,-460.0,0.00019256,2]
[372874362,1752787850697,-460.0,0.00019256,2]
[372874363,1752787850706,-460.0,0.00019256,2]
[372874364,1752787850716,-460.0,0.00019256,2]
[372874365,1752787850725,-460.0,0.00019256,2]
[372874366,1752787850735,-460.0,0.00019256,2]
[372874367,1752787850744,-460.0,0.00019256,2]
[372874368,1752787850753,-527.91,0.00019256,2]
[372874369,1752787850763,-460.0,0.00019256,2]
[372874370,1752787850772,-743.69,0.00019256,2]
[372874371,1752787850782,-488.85,0.00019256,2]
[372874372,1752787850791,-460.0,0.00019257,2]
[372874373,1752787850801,-460.0,0.00019257,2]
[372874374,1752787850810,-460.0,0.00019257,2]
[372874375,1752787850819,-460.0,0.00019257,2]
[372874376,1752787850829,-460.0,0.00019257,2]
[372874377,1752787850838,-2558.1,0.00019257,2]
[372874378,1752787850847,-902.37,0.00019257,2]
[372874379,1752787850857,-460.0,0.00019257,2]
[372874380,1752787850973,-460.0,0.00019257,2]
[372874381,1752787850982,-858.09,0.00019257,2]
[372874382,1752787850991,-151.0,0.00019258,2]
[372874383,1752787851000,-151.0,0.00019258,2]
[372874384,1752787851009,-460.0,0.00019258,2]
[372874385,1752787851018,-860.36,0.00019258,2]
[372874386,1752787851027,-842.54,0.00019258,2]
[372874387,1752787851037,-460.0,0.00019258,2]
[372874388,1752787851046,-460.0,0.00019258,2]
[372874389,1752787851055,-460.0,0.00019258,2]
[372874390,1752787851068,-460.0,0.00019259,2]
[372874391,1752787851077,-460.0,0.00019259,2]
[372874392,1752787851086,-460.0,0.00019259,2]
[372874393,1752787851095,-508.89,0.00019259,2]
[372874394,1752787851105,-460.0,0.00019259,2]
[372874395,1752787851114,-460.0,0.00019259,2]
[372874396,1752787851123,-797.17,0.00019259,2]
[372874397,1752787851133,-500.0,0.00019273,2]
[372874398,1752787851144,-500.0,0.00019273,2]
[372874399,1752787851154,-500.0,0.00019273,2]
[372874400,1752787851163,-500.0,0.00019273,2]
[372874401,1752787851173,-500.0,0.00019273,2]
[372874402,1752787851184,-500.81999821,0.00019273,2]
[372874403,1752787851193,-167.89196297,0.00019273,2]
[372874404,1752787851202,-501.51029155,0.00019273,2]
[372874405,1752787851212,-500.0,0.00019273,2]
[372874406,1752787851221,-500.0,0.00019273,2]
[372874407,1752787851230,-500.0,0.00019273,2]
[372874408,1752787851239,-500.0,0.00019273,2]
[372874409,1752787851248,-618.45833334,0.00019273,2]
[372874410,1752787851257,-500.0,0.00019273,2]
[372874411,1752787851266,-500.0,0.00019273,2]
[372874412,1752787851274,-500.0,0.00019273,2]
[372874413,1752787851284,-500.0,0.00019273,2]
[372874414,1752787851293,-500.0,0.00019273,2]
[372874415,1752787851301,-500.0,0.00019273,2]
[372874416,1752787851311,-500.0,0.00019279,2]
[372874417,1752787851320,-386.78555785,0.00019279,2]
[372874418,1752787851329,-151.0,0.0001928,2]
[372874419,1752787851338,-207.4,0.0001928,2]
[372874420,1752787851347,-151.0,0.0001928,2]
[372874421,1752787851356,-252.61929863,0.0001928,2]
[372874422,1752787851366,-151.0,0.0001928,2]
[372874423,1752787851375,-151.0,0.0001928,2]
[372874424,1752787851385,-151.0,0.0001928,2]
[372874425,1752787851394,-151.0,0.0001928,2]
[372874426,1752787851404,-151.0,0.0001928,2]
[372874427,1752787851413,-151.0,0.0001928,2]
[372874428,1752787851422,-151.0,0.0001928,2]
[372874429,1752787851432,-151.0,0.0001928,2]
[372874430,1752787851441,-151.0,0.0001928,2]
[372874431,1752787851450,-151.0,0.0001928,2]
[372874432,1752787851460,-151.0,0.0001928,2]
[372874433,1752787851469,-151.0,0.0001928,2]
[372874434,1752787851478,-151.0,0.0001928,2]
[372874435,1752787851488,-151.0,0.0001928,2]
[372874436,1752787851499,-151.0,0.0001928,2]
[372874437,1752787851508,-151.0,0.0001928,2]
[372874438,1752787851518,-151.0,0.0001928,2]
[372874439,1752787851527,-151.0,0.0001928,2]
[372874440,1752787851536,-151.0,0.0001928,2]
[372874441,1752787851545,-25000.0,0.0001928,2]
[372874442,1752787851554,-151.0,0.0001928,2]
[372874443,1752787851562,-3177.68653862,0.0001928,2]
[372874444,1752787851571,-175.07056889,0.0001928,2]
[372874445,1752787851580,-151.0,0.0001928,2]
[372874446,1752787851589,-151.0,0.0001928,2]
[372874447,1752787851599,-151.0,0.0001928,2]
[372874448,1752787851608,-151.0,0.0001928,2]
[372874449,1752787851618,-151.0,0.0001928,2]
[372874450,1752787851627,-151.0,0.0001928,2]
[372874451,1752787851637,-151.0,0.0001928,2]
[372874452,1752787851646,-151.0,0.0001928,2]
[372874453,1752787851656,-151.0,0.0001928,2]
[372874454,1752787851665,-151.0,0.0001928,2]
[372874455,1752787851675,-151.0,0.0001928,2]
[372874456,1752787851686,-179.92802879,0.00019311,2]
[372874457,1752787851696,-295.375439,0.00019329,2]
[372874458,1752787851705,-151.0,0.00019329,2]
[372874459,1752787851716,-295.375439,0.00019329,2]
[372874460,1752787851727,-151.0,0.00019329,2]
[372874461,1752787851736,-696.378098,0.00019329,2]
[372874462,1752787851746,-696.378098,0.00019329,2]
[372874463,1752787851755,-151.0,0.00019329,2]
[372874464,1752787851765,-151.0,0.00019329,2]
[372874465,1752787851774,-151.0,0.00019329,2]
[372874466,1752787851784,-151.0,0.00019329,2]
[372874467,1752787851793,-151.0,0.00019329,2]
[372874468,1752787851803,-151.0,0.00019329,2]
[372874469,1752787851813,-36161.96721081,0.00019329,2]
[372874470,1752787851911,-29104.65289131,0.00019329,2]
[372874471,1752787851921,-500.0,0.00019373,2]
[372874472,1752787851932,-500.0,0.00019373,2]
[372874473,1752787851943,-503.46839488,0.00019373,2]
[372874474,1752787851953,-501.03534537,0.00019373,2]
[372874475,1752787851962,-500.0,0.00019373,2]
[372874476,1752787851971,-500.0,0.00019373,2]
[372874477,1752787851980,-500.0,0.00019373,2]
[372874478,1752787851989,-643.78665454,0.00019373,2]
[372874479,1752787851998,-500.0,0.00019373,2]
[372874480,1752787852008,-370.80328516,0.00019373,2]
[372874481,1752787852017,-500.0,0.00019373,2]
[372874482,1752787852026,-460.0,0.00019529,2]
[372874483,1752787852035,-910.41,0.00019529,2]
[372874484,1752787852044,-1267.88,0.00019529,2]
[372874485,1752787852054,-957.69,0.00019529,2]
[372874486,1752787852067,-460.0,0.00019529,2]
[372874487,1752787852076,-460.0,0.00019529,2]
[372874488,1752787852086,-1186.63,0.00019529,2]
[372874489,1752787852095,-460.0,0.00019529,2]
[372874490,1752787852105,-1406.18,0.00019529,2]
[372874491,1752787852115,-460.0,0.00019529,2]
[372874492,1752787852124,-460.0,0.00019529,2]
[372874493,1752787852134,-460.0,0.00019529,2]
[372874494,1752787852145,-593.79554543,0.00019529,2]
[372874495,1752787852156,-460.0,0.00019529,2]
[372874496,1752787852165,-460.0,0.0001953,2]
[372874497,1752787852174,-460.0,0.0001953,2]
[372874498,1752787852188,-460.0,0.0001953,2]
[372874499,1752787852198,-460.0,0.0001953,2]
[372874500,1752787852208,-460.0,0.0001953,2]
[372874501,1752787852217,-460.0,0.0001953,2]
[372874502,1752787852227,-460.0,0.0001953,2]
[372874503,1752787852237,-460.0,0.0001953,2]
[372874504,1752787852247,-527.91,0.0001953,2]
[372874505,1752787852256,-460.0,0.0001953,2]
[372874506,1752787852266,-743.69,0.0001953,2]
[372874507,1752787852275,-488.85,0.0001953,2]
[372874508,1752787852285,-460.0,0.00019531,2]
[372874509,1752787852295,-460.0,0.00019531,2]
[372874510,1752787852305,-287.76,0.00019531,2]
[372874511,1752787852315,-460.0,0.00019531,2]
[372874512,1752787852324,-460.0,0.00019531,2]
[372874513,1752787852334,-2558.1,0.00019531,2]
[372874514,1752787852343,-902.37,0.00019531,2]
[372874515,1752787852351,-460.0,0.00019531,2]
[372874516,1752787852360,-460.0,0.00019531,2]
[372874517,1752787852369,-858.09,0.00019531,2]
[372874518,1752787852378,-460.0,0.00019532,2]
[372874519,1752787852387,-860.36,0.00019532,2]
[372874520,1752787852396,-842.54,0.00019532,2]
[372874521,1752787852407,-460.0,0.00019532,2]
[372874522,1752787852416,-460.0,0.00019532,2]
[372874523,1752787852425,-460.0,0.00019532,2]
[372874524,1752787852437,-460.0,0.00019533,2]
[372874525,1752787852446,-151.0,0.00019533,2]
[372874526,1752787852456,-460.0,0.00019533,2]
[372874527,1752787852465,-601.65366355,0.00019533,2]
[372874528,1752787852475,-508.89,0.00019533,2]
[372874529,1752787852484,-460.0,0.00019533,2]
[372874530,1752787852494,-460.0,0.00019533,2]
[372874531,1752787852504,-797.17,0.00019533,2]
[372874532,1752787852513,-2500.0,0.00019564,2]
[372874533,1752787852523,-150.0,0.00019644,2]
[372874534,1752787852532,-151.0,0.00019688,2]
[372874535,1752787852542,-151.0,0.00019688,2]
[372874536,1752787852551,-151.0,0.00019688,2]
[372874537,1752787852560,-460.0,0.00019803,2]
[372874538,1752787852570,-910.41,0.00019803,2]
[372874539,1752787852579,-1267.88,0.00019803,2]
[372874540,1752787852589,-957.69,0.00019803,2]
[372874541,1752787852605,-460.0,0.00019803,2]
[372874542,1752787852621,-333.88,0.00019803,2]
[372874543,1752787852630,-1186.63,0.00019803,2]
[372874544,1752787852639,-460.0,0.00019803,2]
[372874545,1752787852648,-1406.18,0.00019803,2]
[372874546,1752787852657,-350.5,0.00019803,2]
[372874547,1752787852666,-580.1,0.00019803,2]
[372874548,1752787852675,-460.0,0.00019803,2]
[372874549,1752787852687,-460.0,0.00019803,2]
[372874550,1752787852696,-460.0,0.00019804,2]
[372874551,1752787852705,-460.0,0.00019804,2]
[372874552,1752787852715,-460.0,0.00019804,2]
[372874553,1752787852723,-460.0,0.00019804,2]
[372874554,1752787852732,-514.91494386,0.00019804,2]
[372874555,1752787852742,-460.0,0.00019804,2]
[372874556,1752787852751,-460.0,0.00019804,2]
[372874557,1752787852760,-527.91,0.00019804,2]
[372874558,1752787852770,-460.0,0.00019804,2]
[372874559,1752787852779,-743.69,0.00019804,2]
[372874560,1752787852788,-488.85,0.00019804,2]
[372874561,1752787852797,-460.0,0.00019805,2]
[372874562,1752787852806,-460.0,0.00019805,2]
[372874563,1752787852815,-460.0,0.00019805,2]
[372874564,1752787852824,-460.0,0.00019805,2]
[372874565,1752787852832,-2558.1,0.00019805,2]
[372874566,1752787852841,-902.37,0.00019805,2]
[372874567,1752787852851,-460.0,0.00019805,2]
[372874568,1752787852860,-460.0,0.00019805,2]
[372874569,1752787852870,-858.09,0.00019805,2]
[372874570,1752787852879,-460.0,0.00019806,2]
[372874571,1752787852888,-860.36,0.00019806,2]
[372874572,1752787852897,-842.54,0.00019806,2]
[372874573,1752787852907,-306.26,0.00019806,2]
[372874574,1752787852916,-473.8,0.00019806,2]
[372874575,1752787852925,-460.0,0.00019807,2]
[372874576,1752787852937,-460.0,0.00019807,2]
[372874577,1752787852947,-508.89,0.00019807,2]
[372874578,1752787852957,-460.0,0.00019807,2]
[372874579,1752787852967,-460.0,0.00019807,2]
[372874580,1752787852976,-797.17,0.00019807,2]
[372874581,1752787852986,-500.0,0.00019821,2]
[372874582,1752787852995,-500.0,0.00019821,2]
[372874583,1752787853004,-1000.0,0.00019821,2]
[372874584,1752787853014,-500.0,0.00019821,2]
[372874585,1752787853024,-1000.0,0.00019821,2]
[372874586,1752787853034,-1000.0,0.00019821,2]
[372874587,1752787853043,-500.0,0.00019821,2]
[372874588,1752787853053,-1000.0,0.00019821,2]
[372874589,1752787853066,-1000.0,0.00019821,2]
[372874590,1752787853077,-375.97667728,0.00019821,2]
[372874591,1752787853184,-500.0,0.00019821,2]
[372874592,1752787853194,-1000.0,0.00019821,2]
[372874593,1752787853203,-25000.0,0.00019828,2]
[372874594,1752787853214,-244.0,0.00019917,2]
[372874595,1752787853224,-1064.28236385,0.00019921,2]
[372874596,1752787853233,-1000.0,0.00019921,2]
[372874597,1752787853243,-1085.0441841,0.00019921,2]
[372874598,1752787853252,-1000.0,0.00019921,2]
[372874599,1752787853261,-950.0,0.00019921,2]
[372874600,1752787853271,-460.0,0.00020077,2]
[372874601,1752787853281,-910.41,0.00020077,2]
[372874602,1752787853291,-1267.88,0.00020077,2]
[372874603,1752787853301,-957.69,0.00020077,2]
[372874604,1752787853311,-460.0,0.00020077,2]
[372874605,1752787853321,-1186.63,0.00020077,2]
[372874606,1752787853331,-1406.18,0.00020077,2]
[372874607,1752787853340,-460.0,0.00020077,2]
[372874608,1752787853350,-341.6500249,0.00020077,2]
[372874609,1752787853359,-460.0,0.00020078,2]
[372874610,1752787853369,-460.0,0.00020078,2]
[372874611,1752787853379,-460.0,0.00020078,2]
[372874612,1752787853389,-460.0,0.00020078,2]
[372874613,1752787853398,-460.0,0.00020078,2]
[372874614,1752787853408,-527.91,0.00020078,2]
[372874615,1752787853417,-460.0,0.00020078,2]
[372874616,1752787853427,-743.69,0.00020078,2]
[372874617,1752787853438,-488.85,0.00020078,2]
[372874618,1752787853448,-460.0,0.00020079,2]
[372874619,1752787853458,-460.0,0.00020079,2]
[372874620,1752787853467,-2558.1,0.00020079,2]
[372874621,1752787853476,-902.37,0.00020079,2]
[372874622,1752787853486,-460.0,0.00020079,2]
[372874623,1752787853496,-460.0,0.00020079,2]
[372874624,1752787853505,-123.7174855,0.00020079,2]
[372874625,1752787853545,-734.3725145,0.00020079,2]
[372874626,1752787853557,-41.65821625,0.0002008,2]
[372874627,1752787853568,-418.34178375,0.0002008,2]
[372874628,1752787853578,-860.36,0.0002008,2]
[372874629,1752787853588,-177.29413713,0.0002008,2]
[372874630,1752787853599,-665.24586287,0.0002008,2]
[372874631,1752787853608,-152.67413963,0.00020081,2]
[372874632,1752787853620,-307.32586037,0.00020081,2]
[372874633,1752787853630,-460.0,0.00020081,2]
[372874634,1752787853639,-508.89,0.00020081,2]
[372874635,1752787853649,-232.49169801,0.00020081,2]
[372874636,1752787853700,-520.67,0.00016783,3]
[372874637,1752787853710,-484.23,0.0001734,2]
[372874638,1752787853719,-484.23,0.00017614,2]
[372874639,1752787853729,-484.23,0.00017888,2]
[372874640,1752787853739,-227.50830199,0.00020081,2]
[372874641,1752787853749,-460.0,0.00020081,2]
[372874642,1752787853758,-797.17,0.00020081,2]
[372874643,1752787853768,-2095.68264601,0.00020112,2]
[372874644,1752787853777,-376.36341,0.00020187,2]
[372874645,1752787853787,-2740.63491796,0.00020196,2]
[372874646,1752787853797,-228.21,0.00020351,2]
[372874647,1752787853807,-910.41,0.00020351,2]
[372874648,1752787853816,-1267.88,0.00020351,2]
[372874649,1752787853826,-957.69,0.00020351,2]
[372874650,1752787853836,-460.0,0.00020351,2]
[372874651,1752787853845,-1186.63,0.00020351,2]
[372874652,1752787853855,-1406.18,0.00020351,2]
[372874653,1752787853865,-460.0,0.00020351,2]
[372874654,1752787853874,-460.0,0.00020352,2]
[372874655,1752787853884,-460.0,0.00020352,2]
[372874656,1752787853893,-460.0,0.00020352,2]
[372874657,1752787853903,-460.0,0.00020352,2]
[372874658,1752787853912,-527.91,0.00020352,2]
[372874659,1752787853922,-460.0,0.00020352,2]
[372874660,1752787853935,-743.69,0.00020352,2]
[372874661,1752787853944,-488.85,0.00020352,2]
[372874662,1752787853954,-460.0,0.00020353,2]
[372874663,1752787853963,-460.0,0.00020353,2]
[372874664,1752787853972,-2558.1,0.00020353,2]
[372874665,1752787853982,-902.37,0.00020353,2]
[372874666,1752787853991,-460.0,0.00020353,2]
[372874667,1752787854001,-460.0,0.00020353,2]
[372874668,1752787854011,-858.09,0.00020353,2]
[372874669,1752787854021,-460.0,0.00020354,2]
[372874670,1752787854030,-860.36,0.00020354,2]
[372874671,1752787854040,-842.54,0.00020354,2]
[372874672,1752787854049,-460.0,0.00020355,2]
[372874673,1752787854062,-460.0,0.00020355,2]
[372874674,1752787854072,-508.89,0.00020355,2]
[372874675,1752787854082,-460.0,0.00020355,2]
[372874676,1752787854091,-460.0,0.00020355,2]
[372874677,1752787854101,-797.17,0.00020355,2]
[372874678,1752787854111,-1000.0,0.00020368,2]
[372874679,1752787854119,-1000.0,0.00020368,2]
[372874680,1752787854128,-488.74686382,0.00020368,2]
[372874681,1752787854137,-500.0,0.00020368,2]
[372874682,1752787854148,-25000.0,0.00020376,2]
[372874683,1752787854157,-166.0,0.00020376,2]
[372874684,1752787854169,-1401.42791799,0.00020468,2]
[372874685,1752787854183,-1500.0,0.00020468,2]
[372874686,1752787854197,-250.27,0.0002059,2]
[372874687,1752787854211,-910.41,0.00020625,2]
[372874688,1752787854223,-1267.88,0.00020625,2]
[372874689,1752787854236,-957.69,0.00020625,2]
[372874690,1752787854249,-460.0,0.00020625,2]
[372874691,1752787854262,-1186.63,0.00020625,2]
[372874692,1752787854275,-1406.18,0.00020625,2]
[372874693,1752787854288,-460.0,0.00020625,2]
[372874694,1752787854301,-460.0,0.00020626,2]
[372874695,1752787854315,-460.0,0.00020626,2]
[372874696,1752787854329,-460.0,0.00020626,2]
[372874697,1752787854342,-460.0,0.00020626,2]
[372874698,1752787854355,-527.91,0.00020626,2]
[372874699,1752787854367,-460.0,0.00020626,2]
[372874700,1752787854379,-743.69,0.00020626,2]
[372874701,1752787854394,-488.85,0.00020626,2]
[372874702,1752787854407,-460.0,0.00020627,2]
[372874703,1752787854419,-460.0,0.00020627,2]
[372874704,1752787854429,-2558.1,0.00020627,2]
[372874705,1752787854441,-902.37,0.00020627,2]
[372874706,1752787854452,-460.0,0.00020627,2]
[372874707,1752787854464,-460.0,0.00020627,2]
[372874708,1752787854475,-858.09,0.00020627,2]
[372874709,1752787854489,-460.0,0.00020628,2]
[372874710,1752787854503,-860.36,0.00020628,2]
[372874711,1752787854516,-842.54,0.00020628,2]
[372874712,1752787854529,-295.06412271,0.00020629,2]
[372874713,1752787854543,-460.0,0.00020629,2]
[372874714,1752787854555,-508.89,0.00020629,2]
[372874715,1752787854566,-460.0,0.00020629,2]
[372874716,1752787854575,-460.0,0.00020629,2]
[372874717,1752787854586,-797.17,0.00020629,2]
[372874718,1752787854598,-215.0738,0.00020649,2]
[372874719,1752787854612,-151.0,0.00020747,2]
[372874720,1752787854624,-2155.0,0.00020833,2]
[372874721,1752787854634,-968.0,0.00020833,2]
[372874722,1752787854645,-407.0,0.00020833,2]
[372874723,1752787854656,-910.41,0.00020899,2]
[372874724,1752787854669,-1267.88,0.00020899,2]
[372874725,1752787854681,-957.69,0.00020899,2]
[372874726,1752787854693,-460.0,0.00020899,2]
[372874727,1752787854704,-1186.63,0.00020899,2]
[372874728,1752787854716,-1406.18,0.00020899,2]
[372874729,1752787854727,-460.0,0.00020899,2]
[372874730,1752787854738,-460.0,0.000209,2]
[372874731,1752787854749,-460.0,0.000209,2]
[372874732,1752787854760,-460.0,0.000209,2]
[372874733,1752787854771,-461.97,0.000209,2]
[372874734,1752787854783,-527.91,0.000209,2]
[372874735,1752787854795,-155.16,0.000209,2]
[372874736,1752787854807,-743.69,0.000209,2]
[372874737,1752787854818,-488.85,0.000209,2]
[372874738,1752787854829,-460.0,0.00020901,2]
[372874739,1752787854840,-460.0,0.00020901,2]
[372874740,1752787854851,-2558.1,0.00020901,2]
[372874741,1752787854863,-902.37,0.00020901,2]
[372874742,1752787854874,-460.0,0.00020901,2]
[372874743,1752787854886,-460.0,0.00020901,2]
[372874744,1752787854897,-858.09,0.00020901,2]
[372874745,1752787854909,-151.0,0.00020902,2]
[372874746,1752787854920,-151.0,0.00020902,2]
[372874747,1752787854932,-460.0,0.00020902,2]
[372874748,1752787854944,-860.36,0.00020902,2]
[372874749,1752787854955,-842.54,0.00020902,2]
[372874750,1752787854968,-460.0,0.00020903,2]
[372874751,1752787854980,-508.89,0.00020903,2]
[372874752,1752787854989,-460.0,0.00020903,2]
[372874753,1752787854999,-373.07571524,0.00020903,2]
[372874754,1752787855008,-797.17,0.00020903,2]
[372874755,1752787855017,-500.0,0.00020964,2]
[372874756,1752787855027,-570.4268414,0.00021016,2]
[372874757,1752787855037,-790.0,0.00021036,2]
[372874758,1752787855047,-713.709,0.0002104,2]
[372874759,1752787855056,-178.605,0.0002104,2]
[372874760,1752787855071,-150.0,0.00021047,2]
[372874761,1752787855080,-910.41,0.00021173,2]
[372874762,1752787855090,-1267.88,0.00021173,2]
[372874763,1752787855100,-957.69,0.00021173,2]